fUSD/lending_fUSD_20250702
["ID","MTS","AMOUNT","RATE_DAILY","PERIOD"]
[369080875,1751459474075,-460.0,0.00033424,12]
[369080876,1751459474090,-1085.6,0.00033424,12]
[369080877,1751459474109,-319.27475798,0.00033424,12]
[369080878,1751459474125,-460.0,0.00033424,12]
[369080879,1751459474140,-555.21571326,0.00033424,12]
[369080880,1751459474155,-460.0,0.00033424,12]
[369080881,1751459474170,-1038.63,0.00033424,12]
[369080882,1751459474185,-460.0,0.00033424,12]
[369080883,1751459474201,-460.0,0.00033424,12]
[369080884,1751459474218,-1564.35,0.00033424,12]
[369080885,1751459474234,-1000.0,0.00033424,12]
[369080886,1751459474260,-460.0,0.00033424,12]
[369080887,1751459474287,-1549.15,0.00033424,12]
[369080888,1751459474308,-1541.22,0.00033424,12]
[369080889,1751459474329,-570.5,0.00033424,12]
[369080890,1751459474347,-547.29560352,0.00033424,12]
[369080891,1751459474366,-2696.91,0.00033424,12]
[369080892,1751459474381,-580.0,0.00033424,12]
[369080893,1751459474398,-460.0,0.00033424,12]
[369080894,1751459474414,-460.0,0.00033424,12]
[369080895,1751459474431,-554.93,0.00033424,12]
[369080896,1751459474447,-460.0,0.00033424,12]
[369080897,1751459474463,-460.0,0.00033424,12]
[369080898,1751459474480,-1524.19,0.00033424,12]
[369080899,1751459474497,-3776.35,0.00033424,12]
[369080900,1751459474513,-1124.72,0.00033424,12]
[369080901,1751459474528,-1122.34,0.00033424,12]
[369080902,1751459474545,-776.12,0.00033424,12]
[369080903,1751459474563,-527.45,0.00033424,12]
[369080904,1751459474580,-550.0,0.00033424,12]
[369080905,1751459474597,-460.0,0.00033424,12]
[369080906,1751459474615,-1353.7,0.00033424,12]
[369080907,1751459474631,-460.0,0.00033424,12]
[369080908,1751459474649,-1285.53,0.00033424,12]
[369080909,1751459474664,-1450.37,0.00033424,12]
[369080910,1751459474681,-2626.14,0.00033424,12]
[369080911,1751459474697,-460.0,0.00033424,12]
[369080912,1751459474713,-460.0,0.00033424,12]
[369080913,1751459474730,-460.0,0.00033424,12]
[369080914,1751459474745,-5850.52,0.00033424,12]
[369080915,1751459474761,-888.96,0.00033424,12]
[369080916,1751459474777,-485.37,0.00033424,12]
[369080917,1751459474792,-460.0,0.00033424,12]
[369080918,1751459474808,-513.15808299,0.00033424,12]
[369080919,1751459474823,-1110.71,0.00033424,12]
[369080920,1751459475037,-2147.17,0.00033424,12]
[369080921,1751459475054,-460.0,0.00033424,12]
[369080922,1751459475064,-460.0,0.00033424,12]
[369080923,1751459475073,-1092.71,0.00033424,12]
[369080924,1751459475083,-953.08,0.00033424,12]
[369080925,1751459475093,-6818.28,0.00033424,12]
[369080926,1751459475102,-2812.45,0.00033424,12]
[369080927,1751459475111,-118951.71,0.00033424,12]
[369080928,1751459475121,-996.72,0.00033424,12]
[369080929,1751459475132,-550.0,0.00033424,12]
[369080930,1751459475141,-832.7,0.00033424,12]
[369080931,1751459475151,-460.0,0.00033424,12]
[369080932,1751459475160,-1623.92,0.00033424,12]
[369080933,1751459475170,-550.0,0.00033424,12]
[369080934,1751459475180,-548.7,0.00033424,12]
[369080935,1751459475190,-496.80792586,0.00033424,12]
[369080936,1751459475199,-1985.92,0.00033424,12]
[369080937,1751459475208,-996.74,0.00033424,12]
[369080938,1751459475217,-555.99625303,0.00033424,12]
[369080939,1751459475227,-5467.22,0.00033424,12]
[369080940,1751459475236,-2994.21,0.00033424,12]
[369080941,1751459475245,-5002.01,0.00033424,12]
[369080942,1751459475255,-2349.24,0.00033424,12]
[369080943,1751459475263,-6450.42,0.00033424,12]
[369080944,1751459475273,-460.0,0.00033424,12]
[369080945,1751459475282,-1056.4,0.00033424,12]
[369080946,1751459475292,-460.0,0.00033424,12]
[369080947,1751459475301,-5750.28,0.00033424,12]
[369080948,1751459475310,-1089.24,0.00033424,12]
[369080949,1751459475320,-1083.75,0.00033424,12]
[369080950,1751459475329,-773.32,0.00033424,12]
[369080951,1751459475339,-513.71,0.00033424,12]
[369080952,1751459475348,-460.0,0.00033424,12]
[369080953,1751459475358,-460.0,0.00033424,12]
[369080954,1751459475367,-460.0,0.00033424,12]
[369080955,1751459475376,-3844.97,0.00033424,12]
[369080956,1751459475387,-460.0,0.00033424,12]
[369080957,1751459475396,-6187.21,0.00033424,12]
[369080958,1751459475406,-2077.98,0.00033424,12]
[369080959,1751459475415,-1186.57,0.00033424,12]
[369080960,1751459475425,-851.5,0.00033424,12]
[369080961,1751459475434,-785.12,0.00033424,12]
[369080962,1751459475443,-460.0,0.00033424,12]
[369080963,1751459475452,-460.0,0.00033424,12]
[369080964,1751459475462,-158.8,0.00033424,12]
[369080965,1751459475471,-2244.04,0.00033424,12]
[369080966,1751459475481,-916.28,0.00033424,12]
[369080967,1751459475490,-460.0,0.00033424,12]
[369080968,1751459475500,-460.0,0.00033424,12]
[369080969,1751459475509,-2974.55,0.00033424,12]
[369080970,1751459475519,-1819.26,0.00033424,12]
[369080971,1751459475528,-460.0,0.00033424,12]
[369080972,1751459475538,-701.11,0.00033424,12]
[369080973,1751459475547,-1630.15,0.00033424,12]
[369080974,1751459475558,-2914.46,0.00033424,12]
[369080975,1751459475569,-460.0,0.00033424,12]
[369080976,1751459475579,-982.01,0.00033424,12]
[369080977,1751459475588,-2068.42,0.00033424,12]
[369080978,1751459475598,-502.46,0.00033424,12]
[369080979,1751459475609,-7362.46,0.00033424,12]
[369080980,1751459475619,-3109.76,0.00033424,12]
[369080981,1751459475629,-460.0,0.00033424,12]
[369080982,1751459475639,-460.0,0.00033424,12]
[369080983,1751459475650,-980.01,0.00033424,12]
[369080984,1751459475659,-460.0,0.00033424,12]
[369080985,1751459475668,-460.0,0.00033424,12]
[369080986,1751459475677,-576.5,0.00033424,12]
[369080987,1751459475687,-553.37788712,0.00033424,12]
[369080988,1751459475696,-1001.47,0.00033424,12]
[369080989,1751459475705,-460.0,0.00033424,12]
[369080990,1751459475714,-460.0,0.00033424,12]
[369080991,1751459475725,-1773.86,0.00033424,12]
[369080992,1751459475734,-460.0,0.00033424,12]
[369080993,1751459475743,-460.0,0.00033424,12]
[369080994,1751459475752,-550.0,0.00033424,12]
[369080995,1751459475761,-460.0,0.00033424,12]
[369080996,1751459475770,-150.0,0.00033465,2]
[369080997,1751459475779,-154.75324611,0.00033473,5]
[369080998,1751459475789,-152.33,0.000335,31]
[369080999,1751459475798,-152.33,0.000335,31]
[369081000,1751459475807,-152.33,0.000335,31]
[369081001,1751459475816,-152.33,0.000335,31]
[369081002,1751459475826,-152.33,0.000335,31]
[369081003,1751459475835,-191.86854497,0.00033504,2]
[369081004,1751459475844,-770.03493091,0.00033505,2]
[369081005,1751459475853,-1000.0,0.00033512,7]
[369081006,1751459475862,-150.0,0.00033525,2]
[369081007,1751459475872,-1000.0,0.00033538,60]
[369081008,1751459475881,-1489.95302,0.0003354,2]
[369081009,1751459475890,-152.0,0.00033572,4]
[369081010,1751459475899,-150.0,0.00033585,2]
[369081011,1751459475909,-191.86854497,0.00033598,2]
[369081012,1751459475918,-770.03493091,0.00033598,2]
[369081013,1751459475927,-150.0,0.00033609,2]
[369081014,1751459475937,-1534.0,0.00033622,2]
[369081015,1751459475946,-446.0,0.00033622,2]
[369081016,1751459475955,-214.14954263,0.00033647,2]
[369081017,1751459475964,-1000.0,0.00033649,7]
[369081018,1751459475973,-150.0,0.00033678,2]
[369081019,1751459475983,-1140409.38785643,0.0003369,5]
[369081020,1751459476940,-205.68558261,0.000319,25]
[369081021,1751459476949,-205.6855825,0.00032186,26]
[369081022,1751459476959,-22.37911489,0.00032471,27]
[369081023,1751459476970,-183.30646761,0.00032471,27]
[369081024,1751459476979,-76.58138079,0.00032757,27]
[369081025,1751459477009,-129.10420171,0.00032757,27]
[369081026,1751459477018,-340.04923003,0.00032876,12]
[369081027,1751459477824,-417.0,0.00032876,5]
[369081028,1751459477834,-119.95076997,0.00032876,12]
[369081029,1751459477843,-460.0,0.00032876,12]
[369081030,1751459477853,-301.68228315,0.00032876,2]
[369081031,1751459477862,-490.0,0.00032876,12]
[369081032,1751459477872,-1041.02,0.00032876,12]
[369081033,1751459477882,-205.6855825,0.00033043,28]
[369081034,1751459477892,-828.58,0.0003315,12]
[369081035,1751459477902,-460.0,0.0003315,12]
[369081036,1751459477911,-460.0,0.0003315,12]
[369081037,1751459477921,-460.0,0.0003315,12]
[369081038,1751459477931,-21.32023067,0.0003315,12]
[369081039,1751459478559,-1570.11,0.00032876,12]
[369081040,1751459478569,-460.0,0.00032876,12]
[369081041,1751459478580,-433.249,0.0003315,12]
[369081047,1751460631755,-523.0,0.0003083,2]
[369081048,1751460631764,-88.11820873,0.00031557,2]
[369081049,1751460631811,-61.88179127,0.00031557,2]
[369081050,1751460631821,-744.48,0.00031648,2]
[369081051,1751460631830,-200.0,0.00031739,7]
[369081052,1751460631839,-518.31,0.00031842,2]
[369081053,1751460631851,-159.79,0.00031878,2]
[369081054,1751460631860,-205.6855825,0.000319,25]
[369081055,1751460631870,-1048.0,0.00031989,3]
[369081056,1751460631880,-4295.22460966,0.0003199,2]
[369081057,1751460631892,-913.41211062,0.0003199,2]
[369081058,1751460631904,-4168.56843775,0.0003199,2]
[369081059,1751460631915,-5440.52602644,0.0003199,2]
[369081060,1751460631926,-853.29881553,0.0003199,2]
[369081061,1751460631936,-2995.0,0.00032,2]
[369081062,1751460631945,-21.5877022,0.00032003,7]
[369081063,1751460631957,-258.2622978,0.00032003,7]
[369081064,1751460631966,-4628.47140216,0.00032066,2]
[369081065,1751460631978,-371.52859784,0.00032066,2]
[369081066,1751460631987,-25.47140216,0.000321,2]
[369081067,1751460632006,-818.67868733,0.000321,2]
[369081068,1751460632020,-1155.84991051,0.000321,2]
[369081069,1751460632030,-733.91315054,0.000322,5]
[369081070,1751460632041,-653.92,0.000322,5]
[369081071,1751460632052,-691.05297101,0.000322,5]
[369081072,1751460632064,-312.73493827,0.000322,5]
[369081073,1751460632090,-238.37894018,0.000322,5]
[369081074,1751460632099,-202.48,0.00032221,2]
[369081075,1751460632108,-111.15383015,0.0003223,2]
[369081076,1751460632120,-290.41293693,0.0003223,2]
[369081077,1751460632146,-598.43323292,0.0003223,2]
[369081078,1751460632155,-150.0,0.000324,2]
[369081079,1751460632164,-880.42826903,0.0003258,33]
[369081082,1751460637958,-125.99673097,0.0003258,33]
[369081083,1751460637969,-1100.0,0.00032748,30]
[369081084,1751460637978,-208.96311802,0.00032766,2]
[369081085,1751460637988,-165.1694704,0.00032766,2]
[369081086,1751460637998,-199.34732187,0.00032766,2]
[369081087,1751460638008,-1642.0029822,0.00032766,2]
[369081088,1751460638018,-5000.0,0.00032776,2]
[369081089,1751460638027,-195.03587125,0.00032776,2]
[369081090,1751460638036,-1642.00298204,0.00032795,2]
[369081091,1751460638046,-1642.00298204,0.00032825,2]
[369081092,1751460638056,-8214.58,0.0003285,4]
[369081093,1751460638066,-1642.00298204,0.00032854,2]
[369081094,1751460638075,-63359.6610236,0.00032856,2]
[369081095,1751460638086,-462.21684105,0.00032865,2]
[369081096,1751460638095,-336.24306317,0.00032865,2]
[369081097,1751460638105,-431.43648141,0.00032865,2]
[369081098,1751460638114,-40826.23997015,0.00032866,2]
[369081110,1751460640311,-2015.41807689,0.00032866,2]
[369081111,1751460640324,-21495.0,0.00032866,2]
[369081112,1751460640595,-2412.86063775,0.00032866,2]
[369081194,1751461831944,-387.551,0.00025496,2]
[369081195,1751461831956,-523.0,0.00030997,2]
[369081196,1751461831966,-548.39498642,0.00031482,2]
[369081197,1751461831976,-150.0,0.00031582,2]
[369081198,1751461831986,-1000.0,0.00031675,2]
[369081199,1751461831996,-150.0,0.00031767,2]
[369081200,1751461832006,-431.92,0.00031797,2]
[369081201,1751461832016,-208.22870954,0.000319,25]
[369081202,1751461832025,-159.83,0.00031912,2]
[369081203,1751461832035,-5000.0,0.00031998,2]
[369081204,1751461832045,-321.24123498,0.00032,14]
[369081205,1751461832058,-318.44394256,0.00032,14]
[369081206,1751461832070,-6421.04946845,0.00032,14]
[369081207,1751461832085,-504.26535401,0.00032,14]
[369081208,1751461832094,-150.0,0.00032124,2]
[369081209,1751461832104,-150.0,0.00032188,2]
[369081210,1751461832114,-150.0,0.00032259,2]
[369081211,1751461832123,-150.0,0.00032425,2]
[369081212,1751461832133,-61.52003116,0.00032431,2]
[369081263,1751461838051,-152.0,0.00032409,3]
[369081264,1751461838061,-88.47996884,0.00032431,2]
[369081265,1751461838070,-150.0,0.00032434,2]
[369081266,1751461838079,-150.0,0.0003253,2]
[369081267,1751461838089,-150.0,0.00032566,2]
[369081268,1751461838098,-9857.52,0.00032576,4]
[369081269,1751461838107,-208.22870945,0.000326,27]
[369081270,1751461838116,-1000.0,0.00032619,7]
[369081271,1751461838125,-1000.0,0.00032756,7]
[369081272,1751461838134,-165.1694704,0.00032758,2]
[369081273,1751461838144,-3410.3508,0.00032766,2]
[369081274,1751461838153,-661.36828038,0.00032766,2]
[369081275,1751461838163,-1642.0029822,0.00032766,2]
[369081276,1751461838172,-660.24,0.00032776,10]
[369081277,1751461838181,-186.28782382,0.00032776,4]
[369081278,1751461838190,-206.18077823,0.00032776,2]
[369081279,1751461838199,-1642.00298204,0.00032781,2]
[369081280,1751461838208,-1999.99999602,0.00032795,2]
[369081281,1751461838218,-1642.00298204,0.00032796,2]
[369081282,1751461838227,-1642.00298204,0.00032811,2]
[369081283,1751461838236,-400.0,0.00032814,15]
[369081284,1751461838245,-1642.00298204,0.00032826,2]
[369081285,1751461838254,-1642.00298204,0.00032841,2]
[369081287,1751461838263,-761.39759925,0.00032855,21]
[369081289,1751461838272,-15476.91765943,0.00032855,21]
[369081291,1751461838281,-1642.00298204,0.00032856,2]
[369081293,1751461838290,-210272.854054,0.00032856,2]
[369081295,1751461838299,-55590.0352194,0.00032856,2]
[369081296,1751461838308,-156.02,0.00032856,2]
[369081298,1751461838317,-805.14,0.00032858,33]
[369081300,1751461838327,-661.36828034,0.00032858,2]
[369081302,1751461838336,-462.21684105,0.00032865,2]
[369081304,1751461838345,-336.24306317,0.00032865,2]
[369081306,1751461838354,-431.43648141,0.00032865,2]
[369081309,1751461838363,-420545.708108,0.00032866,2]
[369081311,1751461838372,-555900.352194,0.00032866,2]
[369081312,1751461838381,-1241.62751,0.00032866,2]
[369081314,1751461838391,-1642.00298204,0.00032871,2]
[369081316,1751461838400,-264601.87685719,0.00032876,2]
[369081318,1751461838409,-1148.92084633,0.00032876,2]
[369081320,1751461838418,-554.55049233,0.00032876,12]
[369081322,1751461838428,-770.87,0.00032876,12]
[369081324,1751461838436,-460.0,0.00032876,12]
[369081326,1751461838446,-460.0,0.00032876,12]
[369081328,1751461838455,-460.0,0.00032876,12]
[369081330,1751461838464,-460.0,0.00032876,12]
[369081332,1751461838474,-460.0,0.00032876,12]
[369081334,1751461838483,-460.0,0.00032876,12]
[369081336,1751461838492,-460.0,0.00032876,12]
[369081338,1751461838501,-524.75993819,0.00032876,12]
[369081340,1751461838511,-460.0,0.00032876,12]
[369081342,1751461838521,-1000.0,0.00032876,12]
[369081344,1751461838530,-580.0,0.00032876,12]
[369081346,1751461838539,-460.0,0.00032876,12]
[369081347,1751461838548,-460.0,0.00032876,12]
[369081349,1751461838557,-460.0,0.00032876,12]
[369081351,1751461838567,-460.0,0.00032876,12]
[369081353,1751461838576,-550.0,0.00032876,12]
[369081355,1751461838585,-460.0,0.00032876,12]
[369081357,1751461838594,-321.22242329,0.00032876,12]
[369081359,1751461838603,-460.0,0.00032876,12]
[369081361,1751461838613,-460.0,0.00032876,12]
[369081363,1751461838622,-490.0,0.00032876,12]
[369081365,1751461838631,-460.0,0.00032876,12]
[369081367,1751461838640,-460.0,0.00032876,12]
[369081369,1751461838649,-460.0,0.00032876,12]
[369081371,1751461838658,-554.48738029,0.00032876,12]
[369081373,1751461838667,-292.01300626,0.00032876,12]
[369081375,1751461838677,-460.0,0.00032876,12]
[369081376,1751461838685,-460.0,0.00032876,12]
[369081378,1751461838694,-460.0,0.00032876,12]
[369081380,1751461838703,-460.0,0.00032876,12]
[369081382,1751461838712,-460.0,0.00032876,12]
[369081384,1751461838723,-460.0,0.00032876,12]
[369081386,1751461838734,-550.0,0.00032876,12]
[369081388,1751461838743,-550.0,0.00032876,12]
[369081390,1751461838752,-523.76099112,0.00032876,12]
[369081392,1751461838761,-460.0,0.00032876,12]
[369081394,1751461838771,-460.0,0.00032876,12]
[369081396,1751461838781,-460.0,0.00032876,12]
[369081398,1751461838791,-520.0,0.00032876,12]
[369081400,1751461838800,-490.0,0.00032876,12]
[369081402,1751461838809,-460.0,0.00032876,12]
[369081404,1751461838817,-520.0,0.00032876,12]
[369081406,1751461838827,-460.0,0.00032876,12]
[369081408,1751461838836,-520.0,0.00032876,12]
[369081410,1751461838845,-460.0,0.00032876,12]
[369081412,1751461838854,-460.0,0.00032876,12]
[369081414,1751461838863,-460.0,0.00032876,12]
[369081416,1751461838875,-520.0,0.00032876,12]
[369081418,1751461838885,-520.0,0.00032876,12]
[369081420,1751461838894,-460.0,0.00032876,12]
[369081422,1751461838903,-520.0,0.00032876,12]
[369081424,1751461838912,-460.0,0.00032876,12]
[369081426,1751461838922,-460.0,0.00032876,12]
[369081428,1751461838931,-460.0,0.00032876,12]
[369081430,1751461838940,-460.0,0.00032876,12]
[369081432,1751461838949,-460.0,0.00032876,12]
[369081434,1751461838958,-460.0,0.00032876,12]
[369081436,1751461838967,-460.0,0.00032876,12]
[369081438,1751461838977,-293.89689975,0.00032876,12]
[369081440,1751461838986,-460.0,0.00032876,12]
[369081442,1751461838995,-460.0,0.00032876,12]
[369081444,1751461839004,-460.0,0.00032876,12]
[369081446,1751461839013,-218.09034144,0.00032876,12]
[369081448,1751461839023,-460.0,0.00032876,12]
[369081450,1751461839032,-526.72953876,0.00032876,12]
[369081452,1751461839042,-460.0,0.00032876,12]
[369081454,1751461839051,-460.0,0.00032876,12]
[369081456,1751461839061,-460.0,0.00032876,12]
[369081458,1751461839070,-460.0,0.00032876,12]
[369081460,1751461839079,-460.0,0.00032876,12]
[369081462,1751461839088,-490.0,0.00032876,12]
[369081464,1751461839097,-460.0,0.00032876,12]
[369081466,1751461839106,-460.0,0.00032876,12]
[369081468,1751461839116,-490.0,0.00032876,12]
[369081470,1751461839124,-460.0,0.00032876,12]
[369081472,1751461839133,-522.32708368,0.00032876,12]
[369081474,1751461839141,-558.5,0.00032876,12]
[369081476,1751461839150,-460.0,0.00032876,12]
[369081478,1751461839158,-460.0,0.00032876,12]
[369081480,1751461839167,-460.0,0.00032876,12]
[369081482,1751461839176,-351.21427641,0.00032876,12]
[369081484,1751461839185,-460.0,0.00032876,12]
[369081486,1751461839194,-493.7238577,0.00032876,12]
[369081487,1751461839202,-492.5867393,0.00032876,12]
[369081489,1751461839212,-460.0,0.00032876,12]
[369081491,1751461839221,-460.0,0.00032876,12]
[369081494,1751461839231,-490.0,0.00032876,12]
[369081496,1751461839241,-460.0,0.00032876,12]
[369081497,1751461839250,-490.0,0.00032876,12]
[369081499,1751461839258,-521.18048835,0.00032876,12]
[369081501,1751461839267,-490.0,0.00032876,12]
[369081503,1751461839276,-460.0,0.00032876,12]
[369081505,1751461839285,-490.0,0.00032876,12]
[369081507,1751461839295,-460.0,0.00032876,12]
[369081509,1751461839304,-460.0,0.00032876,12]
[369081511,1751461839314,-510.0,0.00032876,12]
[369081513,1751461839323,-460.0,0.00032876,12]
[369081515,1751461839333,-490.0,0.00032876,12]
[369081517,1751461839342,-165.46705004,0.00032876,12]
[369081519,1751461839352,-460.0,0.00032876,12]
[369081521,1751461839361,-460.0,0.00032876,12]
[369081523,1751461839370,-490.0,0.00032876,12]
[369081525,1751461839379,-460.0,0.00032876,12]
[369081527,1751461839388,-460.0,0.00032876,12]
[369081529,1751461839397,-460.0,0.00032876,12]
[369081531,1751461839406,-460.0,0.00032876,12]
[369081533,1751461839415,-460.0,0.00032876,12]
[369081535,1751461839424,-225.9018356,0.00032876,12]
[369081537,1751461839433,-460.0,0.00032876,12]
[369081539,1751461839442,-460.0,0.00032876,12]
[369081541,1751461839451,-460.0,0.00032876,12]
[369081543,1751461839460,-460.0,0.00032876,12]
[369081545,1751461839469,-460.0,0.00032876,12]
[369081547,1751461839478,-520.0,0.00032876,12]
[369081549,1751461839487,-491.57453093,0.00032876,7]
[369081551,1751461839496,-460.0,0.00032876,12]
[369081552,1751461839505,-501.57656252,0.00032876,12]
[369081554,1751461839515,-460.0,0.00032876,12]
[369081556,1751461839524,-460.0,0.00032876,12]
[369081557,1751461839533,-460.0,0.00032876,12]
[369081559,1751461839542,-460.0,0.00032876,12]
[369081561,1751461839551,-491.53892638,0.00032876,12]
[369081563,1751461839560,-460.0,0.00032876,12]
[369081565,1751461839569,-460.0,0.00032876,12]
[369081566,1751461839579,-460.0,0.00032876,12]
[369081568,1751461839589,-521.8877914,0.00032876,12]
[369081570,1751461839598,-460.0,0.00032876,12]
[369081572,1751461839606,-490.0,0.00032876,12]
[369081573,1751461839615,-460.0,0.00032876,12]
[369081575,1751461839624,-460.0,0.00032876,12]
[369081577,1751461839633,-460.0,0.00032876,12]
[369081579,1751461839642,-460.0,0.00032876,12]
[369081580,1751461839651,-490.0,0.00032876,12]
[369081582,1751461839661,-490.0,0.00032876,12]
[369081584,1751461839670,-490.0,0.00032876,12]
[369081586,1751461839679,-460.0,0.00032876,12]
[369081587,1751461839688,-490.0,0.00032876,12]
[369081589,1751461839697,-460.0,0.00032876,12]
[369081591,1751461839706,-651.92,0.00032876,12]
[369081593,1751461839715,-490.0,0.00032876,12]
[369081594,1751461839724,-460.0,0.00032876,12]
[369081596,1751461839734,-520.0,0.00032876,12]
[369081598,1751461839743,-460.0,0.00032876,12]
[369081600,1751461839751,-460.0,0.00032876,12]
[369081602,1751461839760,-460.0,0.00032876,12]
[369081603,1751461839770,-460.0,0.00032876,12]
[369081605,1751461839779,-460.0,0.00032876,12]
[369081607,1751461839788,-460.0,0.00032876,12]
[369081609,1751461839797,-460.0,0.00032876,12]
[369081611,1751461839807,-490.0,0.00032876,12]
[369081612,1751461839817,-460.0,0.00032876,12]
[369081614,1751461839826,-460.0,0.00032876,12]
[369081616,1751461839835,-460.0,0.00032876,12]
[369081618,1751461839844,-460.0,0.00032876,12]
[369081620,1751461839853,-460.0,0.00032876,12]
[369081621,1751461839862,-460.0,0.00032876,12]
[369081623,1751461839872,-460.0,0.00032876,12]
[369081625,1751461839885,-460.0,0.00032876,12]
[369081627,1751461839894,-460.0,0.00032876,12]
[369081629,1751461839904,-520.0,0.00032876,12]
[369081631,1751461839913,-460.0,0.00032876,12]
[369081632,1751461839922,-561.2,0.00032876,12]
[369081634,1751461839932,-460.0,0.00032876,12]
[369081636,1751461839941,-460.0,0.00032876,12]
[369081638,1751461839952,-805.92,0.00032876,12]
[369081640,1751461839963,-493.88,0.00032876,12]
[369081641,1751461839972,-460.0,0.00032876,7]
[369081643,1751461839982,-460.0,0.00032876,12]
[369081645,1751461839992,-460.0,0.00032876,12]
[369081647,1751461840001,-491.41285961,0.00032876,12]
[369081648,1751461840010,-491.84303642,0.00032876,12]
[369081650,1751461840019,-491.06816262,0.00032876,12]
[369081652,1751461840028,-460.0,0.00032876,12]
[369081654,1751461840039,-460.0,0.00032876,12]
[369081656,1751461840048,-460.0,0.00032876,12]
[369081658,1751461840057,-460.0,0.00032876,12]
[369081660,1751461840066,-460.0,0.00032876,12]
[369081661,1751461840075,-460.0,0.00032876,12]
[369081663,1751461840086,-460.0,0.00032876,12]
[369081665,1751461840095,-460.0,0.00032876,12]
[369081667,1751461840104,-490.0,0.00032876,12]
[369081668,1751461840113,-460.0,0.00032876,12]
[369081670,1751461840122,-460.0,0.00032876,12]
[369081672,1751461840131,-460.0,0.00032876,12]
[369081674,1751461840141,-460.0,0.00032876,12]
[369081676,1751461840150,-460.0,0.00032876,12]
[369081678,1751461840159,-460.0,0.00032876,12]
[369081679,1751461840168,-460.0,0.00032876,12]
[369081681,1751461840178,-472.27752369,0.00032876,12]
[369081683,1751461840187,-780.1,0.00032876,12]
[369081685,1751461840197,-460.0,0.00032876,12]
[369081687,1751461840206,-460.0,0.00032876,12]
[369081689,1751461840215,-460.0,0.00032876,12]
[369081691,1751461840224,-460.0,0.00032876,12]
[369081692,1751461840233,-460.0,0.00032876,12]
[369081694,1751461840241,-490.0,0.00032876,12]
[369081696,1751461840251,-490.0,0.00032876,12]
[369081698,1751461840260,-460.0,0.00032876,12]
[369081700,1751461840269,-460.0,0.00032876,12]
[369081702,1751461840278,-460.0,0.00032876,12]
[369081703,1751461840287,-490.0,0.00032876,12]
[369081705,1751461840296,-460.0,0.00032876,12]
[369081707,1751461840306,-490.0,0.00032876,12]
[369081709,1751461840315,-460.0,0.00032876,12]
[369081711,1751461840324,-460.0,0.00032876,12]
[369081712,1751461840333,-460.0,0.00032876,12]
[369081714,1751461840342,-460.0,0.00032876,12]
[369081716,1751461840351,-460.0,0.00032876,12]
[369081718,1751461840360,-460.0,0.00032876,12]
[369081720,1751461840369,-569.12,0.00032876,12]
[369081722,1751461840378,-460.0,0.00032876,12]
[369081723,1751461840387,-460.0,0.00032876,12]
[369081725,1751461840397,-460.0,0.00032876,12]
[369081727,1751461840406,-490.0,0.00032876,12]
[369081729,1751461840415,-2227.15,0.00032876,12]
[369081731,1751461840424,-460.0,0.00032876,12]
[369081733,1751461840433,-460.0,0.00032876,12]
[369081735,1751461840442,-460.0,0.00032876,12]
[369081737,1751461840451,-460.0,0.00032876,12]